bitfinex-derivatives/quotes_SOLF0:USTF0_20250320
["timestamp","ask_amount","ask_price","bid_price","bid_amount"]
[1742428802000,0.05558793,135.32,135.26,6.108]
[1742428802499,0.05558793,135.32,135.26,13.508]
[1742428803902,0.05558793,135.32,135.31,7.3888]
[1742428804403,0.05558793,135.32,135.31,14.7888]
[1742428804901,0.05558793,135.32,135.31,7.3888]
[1742428805198,8.793e-05,135.32,135.31,14.7888]
[1742428805401,8.793e-05,135.32,135.31,42.4288]
[1742428805903,8.793e-05,135.32,135.31,46.4848]
[1742428806397,243.78,135.48,135.31,46.4848]
[1742428806597,243.78,135.48,135.32,3.43901431]
[1742428806804,27.64,135.49,135.32,3.43901431]
[1742428806805,27.64,135.49,135.33,16.13092547]
[1742428807004,369.0801,135.5,135.42,7.3824]
[1742428807300,7.3804,135.47,135.43,27.64]
[1742428807499,0.04704525,135.46,135.44,0.05649648]
[1742428807901,7.3811,135.45,135.44,0.05649648]
[1742428808099,0.04704525,135.46,135.44,0.05649648]
[1742428808300,7.3811,135.45,135.44,0.05649648]
[1742428808707,0.04704525,135.46,135.44,0.05649648]
[1742428809506,7.3811,135.45,135.44,0.05649648]
[1742428809702,0.04704525,135.46,135.44,9.648e-05]
[1742428810402,0.04704525,135.46,135.45,27.62]
[1742428811100,0.04704525,135.46,135.45,35.0011]
[1742428811296,0.04704525,135.46,135.45,27.62]
[1742428812106,144.83010159,135.61,135.45,27.62]
[1742428812107,365.0,135.56,135.45,27.62]
[1742428812309,14.7515,135.55,135.45,27.62]
[1742428812706,14.7515,135.55,135.43,27.62]
[1742428812907,1.34038722,135.54,135.44,27.62]
[1742428813106,27.62,135.53,135.43,27.62]
[1742428813307,0.04783704,135.5,135.48,0.05290305]
[1742428815409,0.04783704,135.5,135.48,7.43220305]
[1742428815600,0.04783704,135.5,135.49,27.62]
[1742428815805,7.3765,135.54,135.5,7.3781]
[1742428816002,27.62,135.56,135.49,27.62]
[1742428816510,371.2994,135.61,135.49,27.62]
[1742428816911,7.3759,135.55,135.49,27.62]
[1742428817209,0.05652235,135.54,135.52,0.05203394]
[1742428817416,7.3768,135.53,135.52,0.05203394]
[1742428818123,0.05652235,135.54,135.52,0.05203394]
[1742428818311,0.05652235,135.54,135.52,3.394e-05]
[1742428818518,11.43472235,135.54,135.43,27.62]
[1742428818718,3.9982,135.54,135.42,27.62]
[1742428819224,7.3794,135.49,135.42,27.62]
[1742428819523,3.9982,135.54,135.42,27.62]
[1742428819818,6.06e-05,135.47,135.46,7.3806]
[1742428820021,4.1575,135.61,135.46,27.62]
[1742428820224,27.62,135.6,135.46,27.62]
[1742428820722,7.3761,135.55,135.46,27.62]
[1742428820919,0.05233194,135.54,135.52,0.04785793]
[1742428821122,7.3754,135.56,135.53,27.62]
[1742428821314,0.05616672,135.54,135.53,27.62]
[1742428821718,0.05616672,135.54,135.53,34.9968]
[1742428823622,1.9564,135.66,135.53,35.0]
[1742428823822,1.9564,135.66,135.54,243.56]
[1742428824122,7.3715,135.63,135.54,243.56]
[1742428824318,1.9564,135.66,135.54,243.56]
[1742428824633,29.9164,135.66,135.54,243.56]
[1742428824923,0.05151216,135.61,135.59,0.05378302]
[1742428825120,7.3704,135.65,135.6,27.98]
[1742428825325,0.05077928,135.64,135.62,7.3718]
[1742428825624,0.05077928,135.64,135.63,27.98]
[1742428825818,0.05077928,135.64,135.63,35.3513]
[1742428826213,4.0913,135.72,135.63,27.98]
[1742428827023,4.0913,135.72,135.64,7.3708]
[1742428827221,0.04673956,135.69,135.66,0.05185413]
[1742428828026,7.3692,135.67,135.66,5.413e-05]
[1742428828428,14.7492,135.67,135.66,5.413e-05]
[1742428830025,55.88349186,135.67,135.66,5.413e-05]
[1742428831218,35.31634593,135.67,135.66,5.413e-05]
[1742428831426,55.88349186,135.67,135.66,5.413e-05]
[1742428832127,84.04349186,135.67,135.66,5.413e-05]
[1742428833121,108.71584724,135.67,135.66,5.413e-05]
[1742428833328,35.5292,135.67,135.66,5.413e-05]
[1742428833527,40.27252362,135.67,135.66,5.413e-05]
[1742428833725,47.65252362,135.67,135.66,5.413e-05]
[1742428833927,40.27252362,135.67,135.66,5.413e-05]
[1742428836232,7.3692,135.67,135.66,5.413e-05]
[1742428837531,0.04673956,135.69,135.66,5.413e-05]
[1742428838227,0.04673956,135.69,135.66,28.24005413]
[1742428838425,32.90332362,135.67,135.46,300.75746255]
[1742428838634,32.90332362,135.56,135.46,306.80216255]
[1742428838823,28.7,135.55,135.46,306.80216255]
[1742428839029,32.90332362,135.52,135.46,300.75746255]
[1742428839229,28.7,135.51,135.49,81.33127671]
[1742428839423,28.7,135.51,135.49,78.64547671]
[1742428839725,7.3784,135.5,135.49,66.48217233]
[1742428840333,7.3784,135.5,135.49,43.29617233]
[1742428840530,7.3789,135.49,135.48,89.40633477]
[1742428840732,40.28222362,135.49,135.48,89.40633477]
[1742428840930,47.66222362,135.49,135.48,89.40633477]
[1742428841231,47.66222362,135.49,135.48,28.47533477]
[1742428841424,47.66222362,135.49,135.48,7.70733477]
[1742428842233,372.3795,135.48,135.47,9.73e-05]
[1742428842432,441.34282362,135.48,135.47,9.73e-05]
[1742428842631,76.34282362,135.48,135.47,9.73e-05]
[1742428843840,7.3834,135.41,135.33,5.9354]
[1742428844029,61.56332362,135.4,135.33,5.9354]
[1742428845039,0.04777557,135.38,135.35,0.04900295]
[1742428847138,0.04777557,135.38,135.35,28.64900295]
[1742428847350,28.6,135.45,135.35,28.64900295]
[1742428847643,276.42332362,135.46,135.35,61.50332362]
[1742428847843,276.42332362,135.46,135.39,7.384]
[1742428848043,276.42332362,135.46,135.4,28.58]
[1742428848435,0.04693217,135.44,135.42,0.05390217]
[1742428850043,7.42863217,135.44,135.42,0.05390217]
[1742428850343,28.64693217,135.44,135.42,0.05390217]
[1742428851243,0.04693217,135.44,135.42,0.05390217]
[1742428853144,243.52,135.46,135.42,0.05390217]
[1742428853444,28.52,135.48,135.42,7.43620217]
[1742428853649,32.90332362,135.47,135.41,28.54]
[1742428854346,0.05463209,135.45,135.43,0.05388216]
[1742428854548,0.05463209,135.45,135.43,7.43578216]
[1742428854747,28.55463209,135.45,135.43,0.05388216]
[1742428854946,40.28502362,135.44,135.43,0.05388216]
[1742428855243,283.94502362,135.44,135.43,0.05388216]
[1742428856046,276.56332362,135.44,135.43,0.05388216]
[1742428857757,243.66,135.44,135.43,0.05388216]
[1742428859347,243.66,135.44,135.43,7.43608216]
[1742428859546,0.05463209,135.45,135.43,0.05388216]
[1742428860253,304.96332362,135.49,135.43,0.05388216]
[1742428860454,304.96332362,135.49,135.44,28.34]
[1742428860848,276.58332362,135.49,135.44,28.34]
[1742428861048,276.58332362,135.49,135.44,30.3597]
[1742428861249,276.58332362,135.49,135.48,7.3795]
[1742428861553,0.04745444,135.48,135.47,28.32]
[1742428861752,19.75,135.5,135.47,28.36649326]
[1742428861948,19.75,135.5,135.48,7.3795]
[1742428862152,19.75,135.5,135.47,28.36649326]
[1742428862548,61.22332362,135.49,135.47,0.04649326]
[1742428862752,61.22332362,135.49,135.37,28.32]
[1742428862945,32.90332362,135.43,135.4,7.3835]
[1742428863149,61.28332362,135.43,135.36,6.0495]
[1742428863354,61.28332362,135.43,135.36,34.4095]
[1742428863554,28.38,135.43,135.36,34.4095]
[1742428863756,28.36,135.45,135.36,34.4095]
[1742428864148,0.05274866,135.41,135.38,0.05462836]
[1742428864554,0.05274866,135.41,135.4,7.3838]
[1742428864755,11.17,135.44,135.38,0.05462836]
[1742428865157,11.17,135.44,135.43,7.3822]
[1742428866455,28.40798042,135.45,135.43,7.3822]
[1742428866658,28.40798042,135.45,135.44,7.3817]
[1742428866855,243.66,135.46,135.42,28.35021255]
[1742428867054,243.66,135.46,135.43,1.9435]
[1742428867256,243.66,135.46,135.45,7.3811]
[1742428867455,393.3,135.48,135.43,1.9435]
[1742428867656,365.0,135.48,135.47,7.38]
[1742428868455,355.382,135.48,135.47,7.38]
[1742428868663,339.3506,135.48,135.47,7.38]
[1742428868855,13.6482982,135.49,135.48,7.3795]
[1742428870053,13.16,135.53,135.48,28.32]
[1742428870453,20.5371,135.53,135.48,28.32]
[1742428870658,46.06332362,135.53,135.48,35.6993]
[1742428871160,46.06332362,135.53,135.49,0.04974721]
[1742428871161,32.90332362,135.51,135.49,0.04974721]
[1742428871658,35.6784,135.5,135.49,0.04974721]
[1742428871852,28.3,135.5,135.41,28.3]
[1742428872050,32.90332362,135.47,135.41,28.3]
[1742428872257,68.60372362,135.47,135.41,28.3]
[1742428872456,61.22332362,135.47,135.41,28.3]
[1742428872652,61.22332362,135.47,135.42,7.3827]
[1742428873161,0.04887199,135.46,135.43,0.05602761]
[1742428874661,28.36887199,135.46,135.43,0.05602761]
[1742428874862,7.3815,135.45,135.43,0.05602761]
[1742428875056,28.36887199,135.46,135.43,0.05602761]
[1742428875263,7.3814,135.45,135.43,0.05602761]
[1742428875564,28.36887199,135.46,135.43,0.05602761]
[1742428876664,7.3817,135.44,135.43,0.05602761]
[1742428877355,7.3817,135.44,135.43,2.761e-05]
[1742428879459,9.3564,135.44,135.43,2.761e-05]
[1742428883367,1.9747,135.44,135.43,2.761e-05]
[1742428883567,28.12,135.44,135.43,2.761e-05]
[1742428883970,35.5017,135.44,135.43,2.761e-05]
[1742428884571,28.12,135.44,135.43,2.761e-05]
[1742428885170,35.5017,135.44,135.43,2.761e-05]
[1742428886172,42.8817,135.44,135.43,2.761e-05]
[1742428888076,44.16744595,135.44,135.43,2.761e-05]
[1742428888674,35.5017,135.44,135.43,2.761e-05]
[1742428888876,27.40468492,135.44,135.43,2.761e-05]
[1742428889081,55.42468492,135.44,135.43,2.761e-05]
[1742428889673,20.02298492,135.44,135.43,2.761e-05]
[1742428890180,13.80688492,135.44,135.43,35.40222761]
[1742428890976,10.16770608,135.46,135.43,28.02002761]
[1742428891171,1.84535905,135.45,135.43,28.02002761]
[1742428891775,1.84535905,135.44,135.43,28.02002761]
[1742428892380,1.84535905,135.44,135.43,35.40222761]
[1742428893474,1.84535905,135.44,135.43,28.02002761]
[1742428894678,1.84535905,135.44,135.43,2.761e-05]
[1742428895081,42.13038267,135.44,135.43,2.761e-05]
[1742428895679,49.51038267,135.44,135.43,2.761e-05]
[1742428895886,414.51038267,135.44,135.43,2.761e-05]
[1742428896173,7.3846,135.39,135.35,7.3865]
[1742428896373,35.3446,135.39,135.34,20.5735]
[1742428896682,27.96,135.39,135.34,20.5735]
[1742428896881,7.3854,135.38,135.34,27.9605]
[1742428897183,1.84535905,135.38,135.34,7.387]
[1742428897382,0.04858482,135.37,135.35,0.05118334]
[1742428897784,1.84535905,135.36,135.35,0.05118334]
[1742428897978,1.84535905,135.36,135.35,7.43778334]
[1742428898179,1.84535905,135.36,135.35,0.05118334]
[1742428899884,9.23135905,135.36,135.35,0.05118334]
[1742428900080,29.72535905,135.36,135.28,2.0908]
[1742428900386,31.80905905,135.36,135.28,2.0908]
[1742428900686,39.19545905,135.36,135.32,7.3881]
[1742428900884,31.80905905,135.36,135.32,7.3881]
[1742428901184,9.2790748,135.35,135.33,0.0524621]
[1742428901785,1.84535905,135.34,135.33,0.0524621]
[1742428902994,9.23245905,135.34,135.33,0.0524621]
[1742428903488,9.23245905,135.34,135.28,2.0908]
[1742428903489,1.84535905,135.34,135.28,2.0908]
[1742428903688,27.82,135.33,135.28,2.0908]
[1742428904086,29.82,135.33,135.28,2.0908]
[1742428904385,1.84535905,135.32,135.3,7.3889]
[1742428904684,1.89233282,135.32,135.31,7.3888]
[1742428905283,1.89233282,135.32,135.29,0.05164474]
[1742428905990,1.84535905,135.31,135.3,7.3891]
[1742428906992,1.84535905,135.31,135.29,7.44134474]
[1742428907194,1.84535905,135.31,135.29,0.05164474]
[1742428907390,1.84535905,135.3,135.29,0.05164474]
[1742428908584,1.84535905,135.3,135.29,7.44154474]
[1742428911297,1.84535905,135.31,135.3,7.3893]
[1742428914693,1.84535905,135.31,135.29,7.44124474]
[1742428915104,1.84535905,135.3,135.29,7.44124474]
[1742428915703,1.84535905,135.31,135.29,7.44124474]
[1742428916210,1.84535905,135.3,135.29,7.44124474]
[1742428917211,1.84535905,135.3,135.29,0.05164474]
[1742428917408,34.74868267,135.3,135.17,14.7928]
[1742428917603,40.29432362,135.27,135.23,7.3927]
[1742428917804,67.97432362,135.27,135.23,7.3927]
[1742428917999,67.97432362,135.27,135.18,29.7542]
[1742428918204,27.68,135.27,135.25,7.3917]
[1742428918610,0.0538369,135.27,135.26,7.3915]
[1742428919213,1.90165089,135.27,135.26,7.3915]
[1742428919402,27.66,135.32,135.3,7.3892]
[1742428919613,27.66,135.32,135.25,27.66]
[1742428920406,35.0484,135.32,135.25,27.66]
[1742428920612,0.04714789,135.3,135.27,0.04993106]
[1742428920809,0.04714789,135.3,135.28,7.3904]
[1742428921008,0.04714789,135.3,135.27,0.04993106]
[1742428921516,0.04714789,135.3,135.27,7.44083106]
[1742428921714,0.04714789,135.3,135.27,0.04993106]
[1742428921911,0.04714789,135.3,135.28,27.68]
[1742428922310,4.789e-05,135.3,135.29,7.3899]
[1742428922506,4.789e-05,135.3,135.28,27.68]
[1742428922507,11.59944789,135.31,135.28,67.98332362]
[1742428922715,11.59944789,135.31,135.28,60.58332362]
[1742428923018,11.59944789,135.31,135.3,7.3893]
[1742428923517,4.789e-05,135.31,135.3,14.7893]
[1742428924012,3.265e-05,135.32,135.31,7.3888]
[1742428924317,3.265e-05,135.33,135.31,27.68]
[1742428924810,3.265e-05,135.33,135.32,7.3882]
[1742428925213,3.265e-05,135.33,135.32,14.7682]
[1742428925405,3.769e-05,135.34,135.33,7.3877]
[1742428925609,243.9,135.44,135.33,60.58332362]
[1742428925817,243.9,135.44,135.4,7.3835]
[1742428926019,243.9,135.44,135.39,27.68]
[1742428926414,243.9,135.44,135.41,7.383]
[1742428926611,0.05305539,135.43,135.4,0.05267757]
[1742428927011,0.05305539,135.43,135.41,7.3833]
[1742428927413,0.05305539,135.43,135.4,0.05267757]
[1742428927619,0.05305539,135.43,135.42,7.3828]
[1742428927814,5.539e-05,135.43,135.42,35.0428]
[1742428928220,5.539e-05,135.43,135.42,42.4228]
[1742428929014,5.539e-05,135.43,135.42,35.0428]
[1742428929419,5.539e-05,135.43,135.42,27.66]
[1742428929615,5.539e-05,135.43,135.4,27.71267757]
[1742428929822,5.539e-05,135.43,135.4,0.05267757]
[1742428930526,7.3831,135.42,135.4,0.05267757]
[1742428930717,32.90337901,135.43,135.4,0.05267757]
[1742428930914,7.3832,135.42,135.4,0.05267757]
[1742428931624,7.3839,135.4,135.35,27.66]
[1742428931821,1.84605864,135.41,135.35,27.66]
[1742428931822,29.50605864,135.41,135.35,27.66]
[1742428932024,36.88955864,135.41,135.35,35.0464]
[1742428932225,1.84605864,135.4,135.35,27.66]
[1742428932824,0.05348173,135.39,135.36,7.4351733]
[1742428933025,1.89954037,135.39,135.36,35.0951733]
[1742428933227,1.89954037,135.39,135.38,7.3849]
[1742428933423,1.89954037,135.39,135.36,27.7096733]
[1742428933623,0.05348173,135.39,135.36,27.7096733]
[1742428934035,0.05348173,135.39,135.36,0.0496733]
[1742428934520,1.84649617,135.38,135.36,0.0496733]
[1742428934920,1.84649617,135.38,135.36,7.4356733]
[1742428935121,1.84649617,135.38,135.36,0.0496733]
[1742428935422,1.84649617,135.38,135.37,27.68]
[1742428935616,1.84649617,135.38,135.37,35.0655]
[1742428936424,0.05348173,135.39,135.38,7.3849]
[1742428936825,1.89970748,135.39,135.38,7.3849]
[1742428937227,0.05348173,135.39,135.38,7.3849]
[1742428937623,0.05348173,135.39,135.37,35.0653]
[1742428937824,0.05348173,135.39,135.37,27.68]
[1742428938129,0.05348173,135.39,135.36,0.0496733]
[1742428938531,1.84597159,135.38,135.36,0.0496733]
[1742428938829,1.84597159,135.38,135.37,7.3852]
[1742428939030,1.84597159,135.38,135.36,0.0496733]
[1742428939933,1.84597159,135.37,135.36,0.0496733]
[1742428941934,1.84597159,135.37,135.36,7.4356733]
[1742428942432,0.05348173,135.39,135.36,7.4296733]
[1742428942639,8.173e-05,135.39,135.38,7.3849]
[1742428942825,8.173e-05,135.39,135.38,35.0849]
[1742428943528,8.173e-05,135.39,135.38,42.4649]
[1742428944637,8.173e-05,135.39,135.38,35.0849]
[1742428945132,8.173e-05,135.39,135.38,42.4649]
[1742428948340,10.44938173,135.41,135.4,7.3838]
[1742428949244,8.173e-05,135.41,135.4,7.3838]
[1742428949642,8.173e-05,135.41,135.4,35.2438]
[1742428951142,3.368e-05,135.42,135.41,7.3833]
[1742428953035,19.33,135.48,135.41,7.3833]
[1742428953036,0.0001,135.48,135.42,14.7653]
[1742428953239,42.52403636,135.55,135.45,32.90332362]
[1742428953446,40.47533636,135.55,135.46,28.9]
[1742428953638,40.47533636,135.55,135.54,7.3762]
[1742428953847,80.93193968,135.56,135.54,29.14]
[1742428954144,30.55637801,135.56,135.54,29.14]
[1742428954341,19.45787801,135.56,135.55,7.3757]
[1742428954537,8.37937801,135.56,135.55,7.3757]
[1742428954738,8.43543098,135.56,135.55,7.3757]
[1742428954940,8.43543098,135.56,135.54,7.42868532]
[1742428955136,8.43543098,135.56,135.49,29.16]
[1742428955341,8.43543098,135.56,135.5,29.2]
[1742428955543,1.84428567,135.55,135.5,29.2]
[1742428956046,1.84428567,135.55,135.51,7.43430349]
[1742428956238,1.84428567,135.55,135.51,0.05660349]
[1742428956434,1.84428567,135.54,135.51,0.05660349]
[1742428956641,8.567e-05,135.54,135.53,7.3768]
[1742428956946,80.93193968,135.57,135.53,29.28]
[1742428957246,9.673e-05,135.55,135.54,7.3762]
[1742428957437,15.54,135.58,135.53,62.18332362]
[1742428957645,15.54,135.58,135.57,7.3746]
[1742428957842,15.54,135.58,135.57,36.6346]
[1742428958044,15.54,135.58,135.46,243.58]
[1742428958244,32.90332362,135.57,135.47,29.3]
[1742428958439,36.98022362,135.57,135.47,29.3]
[1742428958649,0.0546963,135.53,135.51,0.05247135]
[1742428959154,0.0546963,135.53,135.48,29.3]
[1742428960347,0.0546963,135.53,135.49,0.05394137]
[1742428960950,0.0546963,135.53,135.49,7.43254137]
[1742428961146,0.0546963,135.53,135.49,0.05394137]
[1742428963152,7.4314963,135.53,135.49,0.05394137]
[1742428963557,0.0546963,135.53,135.49,0.05394137]
[1742428964249,9.63e-05,135.53,135.52,7.3773]
[1742428964456,15.54,135.58,135.52,29.22]
[1742428964659,15.54,135.58,135.57,7.3746]
[1742428964852,15.54,135.58,135.57,36.6146]
[1742428965050,4.1623,135.61,135.57,36.6146]
[1742428965456,4.1623,135.61,135.57,29.24]
[1742428965660,0.05025456,135.6,135.58,0.04923729]
[1742428966755,0.05025456,135.6,135.59,7.3735]
[1742428966952,0.05025456,135.6,135.57,27.89082228]
[1742428967357,0.05025456,135.6,135.59,7.3735]
[1742428969860,5.456e-05,135.6,135.59,7.3735]
[1742428970467,1.84309063,135.64,135.63,7.3713]
[1742428970651,9.063e-05,135.64,135.63,36.5913]
[1742428971056,15.52,135.66,135.64,7.3708]
[1742428971256,15.52,135.66,135.63,29.22]
[1742428971454,15.57618424,135.66,135.63,29.2748484]
[1742428971764,0.05618424,135.66,135.61,29.24]
[1742428972063,32.90332362,135.67,135.6,29.38]
[1742428972267,25.0477,135.7,135.6,29.38]
[1742428972268,54.4077,135.7,135.6,29.38]
[1742428972758,7.3683,135.69,135.6,29.38]
[1742428972960,7.3683,135.69,135.61,32.90332362]
[1742428973163,0.05574274,135.66,135.65,7.3702]
[1742428973358,54.4077,135.7,135.65,29.36]
[1742428973558,0.05250317,135.67,135.65,29.36]
[1742428974358,0.05250317,135.67,135.65,36.7298]
[1742428975059,0.05250317,135.67,135.65,29.36]
[1742428975258,0.05250317,135.67,135.64,0.04684668]
[1742428975452,0.05250317,135.67,135.62,29.34]
[1742428975453,7.3709,135.64,135.62,29.34]
[1742428975665,62.24332362,135.69,135.62,29.34]
[1742428975867,32.90332362,135.67,135.6,29.36]
[1742428976065,7.3718,135.63,135.56,32.90332362]
[1742428976268,32.90332362,135.67,135.57,29.44]
[1742428976269,29.42,135.66,135.57,29.44]
[1742428976468,7.3716,135.63,135.59,7.3732]
[1742428976669,7.42345208,135.63,135.6,29.47622865]
[1742428976966,0.05185208,135.63,135.6,29.47622865]
[1742428977360,0.05185208,135.63,135.6,0.05622865]
[1742428977561,7.42325208,135.63,135.6,7.42892865]
[1742428977756,7.42325208,135.63,135.6,0.05622865]
[1742428977757,0.05185208,135.63,135.6,0.05622865]
[1742428977963,29.47185208,135.63,135.46,243.32]
[1742428978273,32.90332362,135.53,135.4,39.61566652]
[1742428978457,33.5146,135.52,135.39,20.34649956]
[1742428978661,33.5146,135.52,135.39,10.70629956]
[1742428978662,32.90332362,135.42,135.39,10.70629956]
[1742428978967,32.90332362,135.48,135.39,10.70629956]
[1742428979173,0.04974068,135.42,135.4,7.3837]
[1742428979357,0.04974068,135.42,135.41,29.96]
[1742428979560,7.3806,135.46,135.41,29.96]
[1742428979763,0.04861513,135.43,135.41,29.96]
[1742428980059,32.90332362,135.48,135.39,40.68629956]
[1742428980262,0.05030725,135.43,135.41,0.05152794]
[1742428980457,32.90332362,135.42,135.39,10.70629956]
[1742428980662,7.3838,135.4,135.39,3.85489956]
[1742428980860,30.02,135.4,135.33,30.02]
[1742428981057,53.65549434,135.39,135.33,30.02]
[1742428981666,0.04849144,135.37,135.35,0.04794192]
[1742428982675,0.04849144,135.37,135.35,30.02794192]
[1742428983377,365.0,135.5,135.35,83.68343626]
[1742428983579,418.65549434,135.5,135.38,53.65549434]
[1742428983771,53.65549434,135.44,135.39,30.06]
[1742428984077,53.65549434,135.41,135.34,30.12]
[1742428984277,83.77549434,135.41,135.34,30.12]
[1742428984576,0.04774042,135.39,135.36,0.05359988]
[1742428985573,0.04774042,135.39,135.37,30.16]
[1742428987175,30.2,135.47,135.37,30.16]
[1742428987475,83.85549434,135.48,135.38,53.65549434]
[1742428988179,30.2,135.5,135.38,53.65549434]
[1742428988379,0.0541871,135.44,135.42,0.05594551]
[1742428988575,0.0541871,135.44,135.43,30.2]
[1742428988880,0.04896066,135.45,135.43,30.2]
[1742428989075,53.65549434,135.51,135.43,30.2]
[1742428989278,408.38743402,135.54,135.43,30.2]
[1742428989581,408.38743402,135.54,135.48,7.3793]
[1742428989878,408.38743402,135.54,135.48,37.5593]
[1742428990667,0.05260295,135.52,135.5,0.05232306]
[1742428991774,0.05260295,135.52,135.5,7.43032306]
[1742428992275,0.05260295,135.52,135.5,0.05232306]
[1742428992676,0.05260295,135.52,135.42,243.6]
[1742428992877,53.65549434,135.5,135.44,7.3815]
[1742428993072,30.14,135.49,135.42,273.72]
[1742428993271,30.14,135.49,135.42,30.12]
[1742428993673,53.65549434,135.5,135.42,30.12]
[1742428993878,0.056176,135.47,135.44,0.04958725]
[1742428994275,30.14,135.46,135.44,0.04958725]
[1742428994571,0.056176,135.47,135.44,0.04958725]
[1742428995677,53.71167034,135.47,135.44,0.04958725]
[1742428997079,0.056176,135.47,135.45,7.3807]
[1742428997384,0.056176,135.47,135.44,0.04958725]
[1742428997573,0.056176,135.47,135.44,30.22958725]
[1742428998575,0.056176,135.47,135.46,7.3806]
[1742428998779,0.056176,135.47,135.44,30.22958725]
[1742428999182,0.056176,135.47,135.45,7.381]
[1742428999979,0.056176,135.47,135.46,7.3806]
[1742429000586,0.056176,135.47,135.44,30.22958725]
[1742429001175,0.056176,135.47,135.46,7.3806]
[1742429002388,15.51,135.51,135.5,7.3784]
[1742429003283,30.04,135.54,135.47,30.08]
[1742429003483,0.05454397,135.52,135.49,0.05093061]
[1742429003981,0.05454397,135.52,135.51,7.3779]
[1742429004579,0.05454397,135.52,135.49,0.05093061]
[1742429005083,0.05454397,135.52,135.5,30.0]
[1742429006791,0.05454397,135.52,135.5,37.3779]
[1742429007189,0.05454397,135.52,135.5,30.0]
[1742429007486,15.5,135.55,135.5,30.0]
[1742429007687,15.5,135.55,135.5,32.0383]
[1742429007881,15.5,135.55,135.52,7.3773]
[1742429008193,15.5,135.55,135.5,32.0383]
[1742429008387,15.5,135.55,135.52,7.377]
[1742429008690,0.04762476,135.54,135.52,7.377]
[1742429009090,0.04762476,135.54,135.53,7.3768]
[1742429009591,0.04762476,135.54,135.52,7.3772]
[1742429010693,0.04762476,135.54,135.53,7.3768]
[1742429010893,0.04762476,135.54,135.53,37.1768]
[1742429011785,0.04762476,135.54,135.53,29.8]
[1742429012093,62.75255866,135.54,135.51,0.05253581]
[1742429012290,62.75255866,135.54,135.46,7.3804]
[1742429012291,7.3789,135.5,135.46,7.3804]
[1742429012589,29.78,135.51,135.45,1.9969]
[1742429012781,37.1581,135.51,135.47,7.3796]
[1742429012985,29.78,135.51,135.47,7.3796]
[1742429013290,7.3776,135.52,135.48,7.379]
[1742429013488,0.04661858,135.5,135.48,0.05142908]
[1742429014088,7.3789,135.49,135.48,0.05142908]
[1742429015093,0.04661858,135.5,135.48,0.05142908]
[1742429016791,0.04661858,135.5,135.48,7.43062908]
[1742429017688,0.04661858,135.5,135.49,7.3789]
[1742429018287,273.24,135.55,135.48,2.14112908]
[1742429018593,32.9249339,135.57,135.48,2.14112908]
[1742429018793,37.0949,135.57,135.49,2.0577]
[1742429018986,29.72,135.57,135.5,29.72]
[1742429019393,0.05186076,135.55,135.52,7.42865144]
[1742429019589,0.05186076,135.55,135.52,0.05185144]
[1742429019893,0.05186076,135.55,135.54,7.3762]
[1742429020089,15.5,135.58,135.54,29.66]
[1742429020688,15.5,135.58,135.57,7.3746]
[1742429020894,15.5,135.58,135.54,29.66]
[1742429021090,397.9249339,135.61,135.54,29.66]
[1742429021289,32.9249339,135.61,135.54,29.66]
[1742429021495,7.42694606,135.59,135.56,0.05040907]
[1742429021889,0.05334606,135.59,135.56,0.05040907]
[1742429022496,7.3746,135.57,135.56,0.05040907]
[1742429022691,37.0746,135.57,135.56,0.05040907]
[1742429022992,37.0746,135.57,135.49,31.7577]
[1742429022993,37.08,135.57,135.49,31.7577]
[1742429023192,32.9249339,135.55,135.48,9.4689]
[1742429023391,29.7,135.54,135.48,2.0897]
[1742429023692,40.12,135.56,135.48,2.0897]
[1742429023693,69.82,135.56,135.48,2.0897]
[1742429024092,0.0497057,135.53,135.52,7.3773]
[1742429024288,40.12,135.56,135.51,0.05596899]
[1742429024698,40.12,135.56,135.51,2.09656899]
[1742429024897,40.12,135.56,135.54,7.3759]
[1742429025493,40.12,135.56,135.53,29.7]
[1742429025494,36.95728639,135.56,135.55,7.3757]
[1742429025688,33.74458639,135.56,135.55,7.3757]
[1742429025889,9.11458639,135.56,135.55,7.3757]
[1742429026087,0.05018639,135.56,135.55,7.3757]